{"text_format":"3","workbook":"xlsx","n_sheets":2,"sheets":["Datos","Cuotas"],"not_rendered":{"images":2,"comments":1},"read":"whole","date_system":"1900"}

{"sheet":"Datos","index":0,"n_rows":82,"n_cols":22,"rows_kept":82,"merged":[[0,0,0,3],[20,0,20,1],[36,0,36,1],[46,0,46,1],[53,0,53,3],[60,0,60,3],[69,1,69,3]]}
[{"$nulls":16},"Nº ","Entidades","Nº ","Jurisdicción","Nº ","Jurisdicción"]
["Relevamiento de Datos del Crédito",{"$nulls":7},"Vivienda","Sist Amort","Actualiza","Respaldo","Procuración","Documento","Familiar","AFIP",1,"Otro no enumerado",1,"Ciudad Autónoma de Buenos Aires",1,"Ciudad Autónoma de Buenos Aires"]
["Beneficio para litigar sin gastos",{"$nulls":7},"Casa","Francés","UVA","Hipotecario","Sí","DNI","Soltero/a","Sí",2,"BACS Banco de Crédito y Securitizacion S.A.",2,"Provincia de Buenos Aires",2,"Provincia de Buenos Aires"]
["Comunicación \"A\" 6069 BCRA (UVA / UVI)",null,"Fecha de solicitud de reclamo",{"$nulls":5},"Departamento","Alemán","UVI","Prendario",1,"Pasaporte","Viudo/a","No",3,"Banco BBVA Argentina S.A.",3,"Provincia de Catamarca",3,"Provincia de Catamarca"]
["Solamente para aquellos contra quienes no posean acción en su contra.",{"$nulls":7},1,1,1,"Seguro de Caución",2,"LC","Casado/a",1,4,"Banco Bica S.A.",4,"Provincia de Chaco",4,"Provincia de Chaco"]
["Concepto","Dato","Observaciones","Observaciones",{"$nulls":7},"Personal o sola firma",null,"LE","Separado/a",null,5,"Banco Cetelem Argentina S.A.",5,"Provincia de Chubut",5,"Provincia de Chubut"]
["Importe del préstamo en UVAs o UVIs:",null,{"$f":"IF(B7=\"\",\"Indicar monto original en UVAs o UVIs\",\"\")","v":"Indicar monto original en UVAs o UVIs"},null,"Capital",{"$f":"B7","v":{"v":0,"d":"$U 0.00"}},{"$nulls":5},2,null,1,"Divorciado/a",null,6,"Banco CMF S.A.",6,"Provincia de Córdoba",6,"Provincia de Córdoba"]
["Costo Financiero Total (CFT) anual:",null,{"$f":"IF(B8=\"\",\"Porcentual de la tasa anual contratada\",\"\")","v":"Porcentual de la tasa anual contratada"},null,"CFT",{"$f":"B8","v":{"v":0,"d":"0.00%"}},{"$nulls":3},{"$f":"IF(J4=1,\"Fráncés\",\"Alemán\")","v":"Alemán"},{"$f":"IF(K4=1,\"UVA\",\"UVI\")","v":"UVI"},{"$f":"IF(L7=1,\"Hipotecario\",IF(L7=2,\"Prendario\",IF(L7=3,\"Seguro de caución\",\"Perosonal sola firma\")))","v":"Prendario"},null,null,"Conviviente",null,7,"Banco Coinag S.A.",7,"Provincia de Corrientes",7,"Provincia de Corrientes"]
["Cantidad de cuotas mensuales:",null,{"$f":"IF(B9=\"\",\"Cantidad de cuotas establecidas\",\"\")","v":"Cantidad de cuotas establecidas"},null,"Cant. Cuotas",0,{"$nulls":8},1,null,8,"Banco Columbia S.A.",8,"Provincia de Entre Ríos",8,"Provincia de Entre Ríos"]
["Importe de la primera cuota:",{"$nulls":3},"Inicio",{"$f":"B11","v":"00:00:00"},{"$nulls":10},9,"Banco Comafi Sociedad Anónima",9,"Provincia de Formosa",9,"Provincia de Formosa"]
["Fecha de origen del crédito:",null,{"$f":"IF(B11=\"\",\"Fecha de origen del préstamo\",\"\")","v":"Fecha de origen del préstamo"},null,"Deudor",{"$f":"B12","v":0},{"$nulls":10},10,"Banco Credicoop Cooperativo Limitado",10,"Provincia de Jujuy",10,"Provincia de Jujuy"]
["Deudor titular del crédito:",null,{"$f":"IF(B12=\"\",\"Nombre(s) y apellido(s) del deudor\",\"\")","v":"Nombre(s) y apellido(s) del deudor"},null,"Acreedor",{"$f":"R76","v":0},{"$nulls":10},11,"Banco de Comercio S.A.",11,"Provincia de La Pampa",11,"Provincia de La Pampa"]
["Entidad financiera otorgante del crédito:",{"$nulls":15},12,"Banco de Corrientes S.A.",12,"Provincia de La Rioja",12,"Provincia de La Rioja"]
[{"$f":"IF(R75=1,\"Entidad financiera no enumerada\",\"\")","v":"Entidad financiera no enumerada"},null,{"$f":"IF(R75=1,IF(B14=\"\",\"Denominación de la entidad financiera otorgante\",\"\"),\"No indicar entidad financiera\")","v":"Denominación de la entidad financiera otorgante"},null,"Actualiza",{"$f":"K8","v":"UVI"},{"$nulls":10},13,"Banco de Formosa S.A.",13,"Provincia de Mendoza",13,"Provincia de Mendoza"]
["Domicilio del acreedor:",{"$nulls":3},"Respaldo",{"$f":"L8","v":"Prendario"},{"$nulls":10},14,"Banco de Galicia y Buenos Aires S.A.U.",14,"Provincia de Misiones",14,"Provincia de Misiones"]
["Jurisdicción:",{"$nulls":15},15,"Banco de Inversión y Comercio Exterior S.A.",15,"Provincia de Neuquén",15,"Provincia de Neuquén"]
["Sucursal:",{"$nulls":15},16,"Banco de la Ciudad de Buenos Aires",16,"Provincia de Río Negro",16,"Provincia de Río Negro"]
[{"$nulls":16},15,"Banco de la Nación Argentina",15,"Provincia de Neuquén",15,"Provincia de Neuquén"]
["Sistema de Amortización del Crédito","Actualización del Crédito",{"$nulls":14},18,"Banco de la Pampa Sociedad de Economía Mixta",18,"Provincia de San Juan",18,"Provincia de San Juan"]
[{"$nulls":16},19,"Banco de la Provincia de Buenos Aires",19,"Provincia de San Luis",19,"Provincia de San Luis"]
["Documento de  identidad",{"$nulls":15},20,"Banco de la Provincia de Córdoba S.A.",20,"Provincia de Santa Cruz",20,"Provincia de Santa Cruz"]
["Tipo","Datos",{"$nulls":14},21,"Banco de la República Oriental del Uruguay",21,"Provincia de Santa Fe",21,"Provincia de Santa Fe"]
[null,null,"Copia de ambas caras",{"$nulls":13},22,"Banco de San Juan S.A.",22,"Provincia de Santiago del Estero",22,"Provincia de Santiago del Estero"]
["CUIT / CUIL:",null,{"$f":"IF(B24=\"\",\"Número de CUIT o CUIL\",\"\")","v":"Número de CUIT o CUIL"},{"$nulls":13},23,"Banco de Santa Cruz S.A.",23,"Provincia de Tierra del Fuego, Antártida e Isla del Atlántico Sur",23,"Provincia de Tierra del Fuego, Antártida e Isla del Atlántico Sur"]
["Domicilio real actual:",null,{"$f":"IF(B25=\"\",\"Domicilio de contacto\",\"\")","v":"Domicilio de contacto"},{"$nulls":13},24,"Banco de Santiago del Estero S.A.",24,"Provincia de Tucumán",24,"Provincia de Tucumán"]
["Localidad:",null,{"$f":"IF(B25=\"\",\"Denominación de la localidad\",\"\")","v":"Denominación de la localidad"},{"$nulls":13},25,"Banco de Servicios Financieros S.A.",null,1,null,3]
["Jurisdicción:",{"$nulls":15},26,"Banco de Servicios y Transacciones S.A."]
["Correo electrónico:",null,{"$f":"IF(B26=\"\",\"E-mail de contacto\",\"\")","v":"E-mail de contacto"},{"$nulls":13},27,"Banco de Valores S.A."]
["Teléfono fijo:",null,{"$f":"IF(B29=\"\",\"Teléfono de línea físico\",\"\")","v":"Teléfono de línea físico"},{"$nulls":13},28,"Banco del Chubut S.A."]
["Teléfono celular:",null,{"$f":"IF(B30=\"\",\"Teléfono celular de contacto\",\"\")","v":"Teléfono celular de contacto"},{"$nulls":13},29,"Banco del Sol S.A."]
["Actividad laboral:",null,{"$f":"IF(B30=\"\",\"Actividad o fuente de ingresos\",\"\")","v":"Actividad o fuente de ingresos"},{"$nulls":13},30,"Banco Dino S.A."]
["Ingreso que se pueda probar:",null,{"$f":"IF(B31=\"\",\"Ingresos que se puedan documentar\",\"\")","v":"Ingresos que se puedan documentar"},{"$nulls":13},31,"Banco Hipotecario S.A."]
["Situación ante AFIP:",null,"Copia constancia",{"$nulls":13},32,"Banco Industrial S.A."]
["Responsable inscripto:",{"$nulls":15},33,"Banco Interfinanzas S.A."]
["Situación familiar:",{"$nulls":15},34,"Banco Itaú Argentina S.A."]
["Nombre de pareja:",{"$nulls":15},35,"Banco Julio Sociedad Anonima"]
["Hijos convivientes",{"$nulls":15},36,"Banco Macro S.A."]
["Nombre","Edad",{"$nulls":14},37,"Banco Mariva S.A."]
[{"$nulls":16},38,"Banco Masventas S.A."]
[{"$nulls":16},39,"Banco Meridian S.A."]
[{"$nulls":16},40,"Banco Municipal de Rosario"]
[{"$nulls":16},41,"Banco Patagonia S.A."]
[{"$nulls":16},42,"Banco Piano S.A."]
[{"$nulls":16},43,"Banco Provincia de Tierra Del Fuego"]
[{"$nulls":16},44,"Banco Provincia del Neuquén Sociedad Anónima"]
[{"$nulls":16},45,"Banco Rioja Sociedad Anónima Unipersonal"]
["Otros familiares convivientes a cargo del deudor",{"$nulls":15},46,"Banco Roela S.A."]
["Nombre","Parentesco y edad",{"$nulls":14},47,"Banco Sáenz S.A."]
[{"$nulls":16},48,"Banco Santander Río S.A."]
[{"$nulls":16},49,"Banco Sucrédito Regional S.A.U."]
[{"$nulls":16},50,"Banco Supervielle S.A."]
["De existir un familiar con requerimiento de atención acompañar Diagnóstico Médico de la Historia Clínica.",{"$nulls":15},51,"Banco Voii S.A."]
[{"$nulls":16},52,"Bank Of China Limited Sucursal Buenos Aires"]
["Testigos para el beneficios de litigar sin gastos",{"$nulls":15},53,"Brubank S.A.U."]
["No deben ser sus: padres, hermanos, primos, tíos,sobrinos y es preferible que sean vecinos o compañeros laborales.",{"$nulls":15},54,"Compañía Financiera Argentina S.A."]
["Nombre y Apellido","Domicilio","Tipo y número de documento","Correo electrónico",{"$nulls":12},55,"Cordial Compañía Financiera S.A."]
[{"$nulls":16},56,"Crédito Regional Compañía Financiera S.A. Walmart"]
[{"$nulls":16},57,"Fca Compañía Financiera S.A."]
["Cada testigo recibirá un cuestionario que deben llenar de manera manuscrita y debe estar firmado, también se requiere copia del DNI (frente y dorso)",{"$nulls":15},58,"Finandino Compañía Financiera S.A."]
[{"$nulls":16},59,"GPAT Compañía Financiera S.A.U."]
["Destino dado al crédito",{"$nulls":15},60,"HSBC Bank Argentina S.A."]
["Vivienda","Metros cuadrados del inmueble","Cantidad de ambientes","Valor en pesos al origen",{"$nulls":12},61,"Industrial and Commercial Bank of China (Argentina) S.A."]
[{"$nulls":16},62,"Mercedes-Benz Compañía Financiera Argentina S.A."]
[{"$nulls":3},"Valor en pesos actual",{"$nulls":12},63,"Montemar Compañía Financiera S.A."]
[{"$nulls":16},64,"Nuevo Banco De Entre Ríos S.A."]
["Automotor marca","Modelo","Año de patentamiento","Valor en pesos al origen",{"$nulls":12},65,"Nuevo Banco De Santa Fe Sociedad Anónima"]
[{"$nulls":16},66,"Nuevo Banco del Chaco S. A."]
[{"$nulls":3},"Valor en pesos actual",{"$nulls":12},67,"PSA Finance Argentina Compañía Financiera S.A."]
[{"$nulls":16},68,"Rombo Compañía Financiera S.A."]
["Otros destinos","Descripción",{"$nulls":14},69,"Toyota Compañía Financiera de Argentina S.A."]
[{"$nulls":16},70,"Transatlántica Compañía Financiera S.A."]
[{"$nulls":16},71,"Volkswagen Financial Services Compañía Financiera S.A."]
["Acompañar copia del contrato del crévito UVA o UVI, carta de aprobación u otra documentación que posea.",{"$nulls":15},72,"Wilobank S.A."]
[{"$nulls":16},73,"BCRA Banco Central de la República Argentina"]
["Estado actual del crédito","Completar hoja \"Cuotas\" de este mismo libro.",{"$nulls":15},1]
[{"$nulls":17},{"$f":"IF(R75=1,B14,LOOKUP(R75,Q2:R74))","v":0}]
[null,"Cantidad de cuotas adeudadas:"]
[]
["Fecha de vencimiento de próxima cuota:"]
[]
["Oservaciones:"]
["Indique todo otro dato que pueda ser de interés para la causa."]

{"sheet":"Cuotas","index":1,"n_rows":365,"n_cols":6,"rows_kept":365,"merged":[[3,1,3,2],[3,3,3,4]]}
["Cancelaciones"]
["IANCA - Instituto Argentino de Negociación, Conciliación y Arbitraje "]
[{"$nulls":4},"© Miguel Ángel Martín "]
[null,"Fechas",null,"Pesos",null,"Copia de cada cuota o pago"]
["Cuota","Vencimiento","Pago","Vencimiento","Pagada","(Recibo, Depósito, Transferencia, "]
[1,null,null,"",null,"Débito, resumen, etcétera)"]
[2,null,null,""]
[3,null,null,""]
[4,null,null,""]
[5,null,null,""]
[6,null,null,""]
[7,null,null,""]
[8,null,null,""]
[9,null,null,""]
[10,null,null,""]
[11,null,null,""]
[12,null,null,""]
[13,null,null,""]
[14,null,null,""]
[15,null,null,""]
[16,null,null,""]
[17,null,null,""]
[18,null,null,""]
[19,null,null,""]
[20,null,null,""]
[21,null,null,""]
[22,null,null,""]
[23,null,null,""]
[24,null,null,""]
[25,null,null,""]
[26,null,null,""]
[27,null,null,""]
[28,null,null,""]
[29,null,null,""]
[30,null,null,""]
[31,null,null,""]
[32,null,null,""]
[33,null,null,""]
[34,null,null,""]
[35,null,null,""]
[36,null,null,""]
[37,null,null,""]
[38,null,null,""]
[39,null,null,""]
[40,null,null,""]
[41,null,null,""]
[42,null,null,""]
[43,null,null,""]
[44,null,null,""]
[45,null,null,""]
[46,null,null,""]
[47,null,null,""]
[48,null,null,""]
[49,null,null,""]
[50,null,null,""]
[51,null,null,""]
[52,null,null,""]
[53,null,null,""]
[54,null,null,""]
[55,null,null,""]
[56,null,null,""]
[57,null,null,""]
[58,null,null,""]
[59,null,null,""]
[60,null,null,""]
[61,null,null,""]
[62,null,null,""]
[63,null,null,""]
[64,null,null,""]
[65,null,null,""]
[66,null,null,""]
[67,null,null,""]
[68,null,null,""]
[69,null,null,""]
[70,null,null,""]
[71,null,null,""]
[72,null,null,""]
[73,null,null,""]
[74,null,null,""]
[75,null,null,""]
[76,null,null,""]
[77,null,null,""]
[78,null,null,""]
[79,null,null,""]
[80,null,null,""]
[81,null,null,""]
[82,null,null,""]
[83,null,null,""]
[84,null,null,""]
[85,null,null,""]
[86,null,null,""]
[87,null,null,""]
[88,null,null,""]
[89,null,null,""]
[90,null,null,""]
[91,null,null,""]
[92,null,null,""]
[93,null,null,""]
[94,null,null,""]
[95,null,null,""]
[96,null,null,""]
[97,null,null,""]
[98,null,null,""]
[99,null,null,""]
[100,null,null,""]
[101,null,null,""]
[102,null,null,""]
[103,null,null,""]
[104,null,null,""]
[105,null,null,""]
[106,null,null,""]
[107,null,null,""]
[108,null,null,""]
[109,null,null,""]
[110,null,null,""]
[111,null,null,""]
[112,null,null,""]
[113,null,null,""]
[114,null,null,""]
[115,null,null,""]
[116,null,null,""]
[117,null,null,""]
[118,null,null,""]
[119,null,null,""]
[120,null,null,""]
[121,null,null,""]
[122,null,null,""]
[123,null,null,""]
[124,null,null,""]
[125,null,null,""]
[126,null,null,""]
[127,null,null,""]
[128,null,null,""]
[129,null,null,""]
[130,null,null,""]
[131,null,null,""]
[132,null,null,""]
[133,null,null,""]
[134,null,null,""]
[135,null,null,""]
[136,null,null,""]
[137,null,null,""]
[138,null,null,""]
[139,null,null,""]
[140,null,null,""]
[141,null,null,""]
[142,null,null,""]
[143,null,null,""]
[144,null,null,""]
[145,null,null,""]
[146,null,null,""]
[147,null,null,""]
[148,null,null,""]
[149,null,null,""]
[150,null,null,""]
[151,null,null,""]
[152,null,null,""]
[153,null,null,""]
[154,null,null,""]
[155,null,null,""]
[156,null,null,""]
[157,null,null,""]
[158,null,null,""]
[159,null,null,""]
[160,null,null,""]
[161,null,null,""]
[162,null,null,""]
[163,null,null,""]
[164,null,null,""]
[165,null,null,""]
[166,null,null,""]
[167,null,null,""]
[168,null,null,""]
[169,null,null,""]
[170,null,null,""]
[171,null,null,""]
[172,null,null,""]
[173,null,null,""]
[174,null,null,""]
[175,null,null,""]
[176,null,null,""]
[177,null,null,""]
[178,null,null,""]
[179,null,null,""]
[180,null,null,""]
[181,null,null,""]
[182,null,null,""]
[183,null,null,""]
[184,null,null,""]
[185,null,null,""]
[186,null,null,""]
[187,null,null,""]
[188,null,null,""]
[189,null,null,""]
[190,null,null,""]
[191,null,null,""]
[192,null,null,""]
[193,null,null,""]
[194,null,null,""]
[195,null,null,""]
[196,null,null,""]
[197,null,null,""]
[198,null,null,""]
[199,null,null,""]
[200,null,null,""]
[201,null,null,""]
[202,null,null,""]
[203,null,null,""]
[204,null,null,""]
[205,null,null,""]
[206,null,null,""]
[207,null,null,""]
[208,null,null,""]
[209,null,null,""]
[210,null,null,""]
[211,null,null,""]
[212,null,null,""]
[213,null,null,""]
[214,null,null,""]
[215,null,null,""]
[216,null,null,""]
[217,null,null,""]
[218,null,null,""]
[219,null,null,""]
[220,null,null,""]
[221,null,null,""]
[222,null,null,""]
[223,null,null,""]
[224,null,null,""]
[225,null,null,""]
[226,null,null,""]
[227,null,null,""]
[228,null,null,""]
[229,null,null,""]
[230,null,null,""]
[231,null,null,""]
[232,null,null,""]
[233,null,null,""]
[234,null,null,""]
[235,null,null,""]
[236,null,null,""]
[237,null,null,""]
[238,null,null,""]
[239,null,null,""]
[240,null,null,""]
[241,null,null,""]
[242,null,null,""]
[243,null,null,""]
[244,null,null,""]
[245,null,null,""]
[246,null,null,""]
[247,null,null,""]
[248,null,null,""]
[249,null,null,""]
[250,null,null,""]
[251,null,null,""]
[252,null,null,""]
[253,null,null,""]
[254,null,null,""]
[255,null,null,""]
[256,null,null,""]
[257,null,null,""]
[258,null,null,""]
[259,null,null,""]
[260,null,null,""]
[261,null,null,""]
[262,null,null,""]
[263,null,null,""]
[264,null,null,""]
[265,null,null,""]
[266,null,null,""]
[267,null,null,""]
[268,null,null,""]
[269,null,null,""]
[270,null,null,""]
[271,null,null,""]
[272,null,null,""]
[273,null,null,""]
[274,null,null,""]
[275,null,null,""]
[276,null,null,""]
[277,null,null,""]
[278,null,null,""]
[279,null,null,""]
[280,null,null,""]
[281,null,null,""]
[282,null,null,""]
[283,null,null,""]
[284,null,null,""]
[285,null,null,""]
[286,null,null,""]
[287,null,null,""]
[288,null,null,""]
[289,null,null,""]
[290,null,null,""]
[291,null,null,""]
[292,null,null,""]
[293,null,null,""]
[294,null,null,""]
[295,null,null,""]
[296,null,null,""]
[297,null,null,""]
[298,null,null,""]
[299,null,null,""]
[300,null,null,""]
[301,null,null,""]
[302,null,null,""]
[303,null,null,""]
[304,null,null,""]
[305,null,null,""]
[306,null,null,""]
[307,null,null,""]
[308,null,null,""]
[309,null,null,""]
[310,null,null,""]
[311,null,null,""]
[312,null,null,""]
[313,null,null,""]
[314,null,null,""]
[315,null,null,""]
[316,null,null,""]
[317,null,null,""]
[318,null,null,""]
[319,null,null,""]
[320,null,null,""]
[321,null,null,""]
[322,null,null,""]
[323,null,null,""]
[324,null,null,""]
[325,null,null,""]
[326,null,null,""]
[327,null,null,""]
[328,null,null,""]
[329,null,null,""]
[330,null,null,""]
[331,null,null,""]
[332,null,null,""]
[333,null,null,""]
[334,null,null,""]
[335,null,null,""]
[336,null,null,""]
[337,null,null,""]
[338,null,null,""]
[339,null,null,""]
[340,null,null,""]
[341,null,null,""]
[342,null,null,""]
[343,null,null,""]
[344,null,null,""]
[345,null,null,""]
[346,null,null,""]
[347,null,null,""]
[348,null,null,""]
[349,null,null,""]
[350,null,null,""]
[351,null,null,""]
[352,null,null,""]
[353,null,null,""]
[354,null,null,""]
[355,null,null,""]
[356,null,null,""]
[357,null,null,""]
[358,null,null,""]
[359,null,null,""]
[360,null,null,""]